fUSD/lending_fUSD_20251215
["ID","MTS","AMOUNT","RATE_DAILY","PERIOD"]
[398515521,1765774233614,-248.95339524,0.00016726,2]
[398515522,1765774233623,-200.0,0.00016726,2]
[398515523,1765774233633,-500.0,0.00016726,2]
[398515524,1765774233642,-150.0,0.00016726,2]
[398515525,1765774233652,-150.0,0.00016726,2]
[398515526,1765774233661,-150.0,0.00016726,2]
[398515527,1765774233672,-500.0,0.00016726,2]
[398515528,1765774233682,-209.90590555,0.00016726,2]
[398515529,1765774233695,-500.0,0.00016726,2]
[398515530,1765774233717,-500.0,0.00016767,2]
[398515531,1765774233727,-4346.92523355,0.0001682,2]
[398515533,1765774238112,-500.0,0.00016726,2]
[398515534,1765774238121,-150.0,0.00016726,2]
[398515535,1765774238131,-753.72472326,0.0001682,2]
[398515536,1765774238168,-862.89311313,0.0001682,2]
[398515537,1765774238179,-3505.04343299,0.0001682,2]
[398515538,1765774238338,-588.0,0.0001682,2]
[398515547,1765774240356,-489.99999969,0.0001682,2]
[398515548,1765774240369,-628.0193291,0.0001682,2]
[398515601,1765774244390,-4936.24972458,0.0001682,2]
[398515609,1765774246196,-11900.20662415,0.0001682,2]
[398515610,1765774246206,-2028.41274,0.0001683,2]
[398515611,1765774246216,-168.0,0.00016833,2]
[398515612,1765774246225,-500.0,0.00016863,2]
[398515613,1765774246234,-732.0,0.00016863,2]
[398515614,1765774246243,-150.0,0.00016863,2]
[398515615,1765774246252,-150.0,0.00016863,2]
[398515616,1765774246262,-150.0,0.00016863,2]
[398515617,1765774246272,-500.0,0.00016863,2]
[398515618,1765774246282,-206.03941413,0.00016863,2]
[398515619,1765774246291,-154.80042994,0.00016863,2]
[398515620,1765774246300,-1235.0,0.00016863,2]
[398515621,1765774246309,-500.0,0.00016863,2]
[398515622,1765774246319,-500.0,0.00016863,2]
[398515623,1765774246328,-150.0,0.00016863,2]
[398515624,1765774246337,-500.0,0.00016863,2]
[398515625,1765774246347,-521.329991,0.00016863,2]
[398515626,1765774246356,-500.0,0.00016863,2]
[398515628,1765774246365,-150.0,0.00016863,2]
[398515629,1765774246375,-870.811,0.00016863,2]
[398515630,1765774246385,-200.0,0.00016864,2]
[398515631,1765774246395,-757.97145073,0.00016886,2]
[398515632,1765774246405,-1000.0,0.00016886,2]
[398515633,1765774246414,-757.9714507,0.00016888,2]
[398515634,1765774246424,-757.9714507,0.00016889,2]
[398515635,1765774246433,-757.9714507,0.00016891,2]
[398515637,1765774246442,-757.9714507,0.00016892,2]
[398515639,1765774246451,-757.9714507,0.00016894,2]
[398515640,1765774246460,-757.9714507,0.00016895,2]
[398515641,1765774246469,-510.32882,0.000169,2]
[398515642,1765774246478,-150.93613521,0.00016907,2]
[398515643,1765774246488,-481.25235646,0.00016914,2]
[398515644,1765774246500,-168.0,0.00016915,2]
[398515645,1765774246509,-151.0,0.0001697,2]
[398515646,1765774246518,-500.0,0.00016973,2]
[398515647,1765774246528,-500.0,0.00016973,2]
[398515648,1765774246538,-223.71560501,0.00016973,2]
[398515649,1765774246547,-503.160494,0.00016973,2]
[398515650,1765774246556,-500.0,0.00016973,2]
[398515651,1765774246565,-500.0,0.00016973,2]
[398515652,1765774246574,-507.62192768,0.00016973,2]
[398515653,1765774246584,-500.0,0.00016973,2]
[398515654,1765774246594,-500.0,0.00016973,2]
[398515655,1765774246604,-500.0,0.00016973,2]
[398515656,1765774246614,-283.1475962,0.00016973,2]
[398515657,1765774246623,-11767.1487599,0.00016973,2]
[398515658,1765774246633,-2876.5414566,0.00016973,2]
[398515659,1765774246642,-189.5287262,0.00016973,2]
[398515660,1765774246651,-500.0,0.00016973,2]
[398515661,1765774246661,-150.0,0.00016973,2]
[398515662,1765774246670,-175.41,0.00016976,2]
[398515663,1765774246679,-168.0,0.00016982,2]
[398515664,1765774246688,-151.0,0.00016983,2]
[398515665,1765774246697,-150.0,0.00016983,2]
[398515666,1765774246706,-151.0,0.00016983,2]
[398515667,1765774246715,-151.0,0.00016986,2]
[398515668,1765774246724,-151.0,0.00016986,2]
[398515669,1765774246733,-151.0,0.00016986,2]
[398515670,1765774246742,-151.0,0.00016986,2]
[398515671,1765774246751,-151.0,0.00016986,2]
[398515672,1765774246760,-151.0,0.00016986,2]
[398515673,1765774246769,-189.211857,0.00016986,2]
[398515674,1765774246778,-151.0,0.00016986,2]
[398515675,1765774246787,-151.0,0.00016986,2]
[398515676,1765774246796,-151.0,0.00016986,2]
[398515677,1765774246805,-151.0,0.00016986,2]
[398515678,1765774246814,-151.0,0.00016986,2]
[398515679,1765774246823,-151.0,0.00016986,2]
[398515680,1765774246832,-151.0,0.00016986,2]
[398515681,1765774246841,-151.0,0.00016986,2]
[398515682,1765774246852,-151.0,0.00016986,2]
[398515683,1765774246860,-151.0,0.00016986,2]
[398515684,1765774246869,-151.0,0.00016986,2]
[398515685,1765774246879,-151.0,0.00016986,2]
[398515686,1765774246887,-151.0,0.00016986,2]
[398515687,1765774246898,-151.0,0.00016986,2]
[398515688,1765774246908,-151.0,0.00016986,2]
[398515689,1765774246916,-247.651228,0.00016986,2]
[398515690,1765774246926,-244.571419,0.00016986,2]
[398515691,1765774246936,-162.403125,0.00016986,2]
[398515692,1765774246945,-229.04548,0.00016986,2]
[398515693,1765774246954,-229.04548,0.00016986,2]
[398515694,1765774246964,-229.04548,0.00016986,2]
[398515695,1765774246973,-229.04548,0.00016986,2]
[398515696,1765774246982,-229.04548,0.00016986,2]
[398515697,1765774246991,-229.04548,0.00016986,2]
[398515698,1765774247000,-229.04548,0.00016986,2]
[398515699,1765774247010,-229.04548,0.00016986,2]
[398515700,1765774247019,-229.04548,0.00016986,2]
[398515701,1765774247028,-229.04548,0.00016986,2]
[398515702,1765774247037,-229.04548,0.00016986,2]
[398515703,1765774247046,-229.04548,0.00016986,2]
[398515704,1765774247054,-151.0,0.00016986,2]
[398515705,1765774247064,-298.351795,0.00016986,2]
[398515706,1765774247073,-151.0,0.00016986,2]
[398515707,1765774247082,-151.0,0.00016986,2]
[398515708,1765774247091,-154.02508,0.00016986,2]
[398515709,1765774247099,-154.02508,0.00016986,2]
[398515710,1765774247108,-183.60170683,0.00016986,2]
[398515711,1765774247117,-154.02508,0.00016986,2]
[398515712,1765774247126,-154.02508,0.00016986,2]
[398515713,1765774247135,-154.02508,0.00016986,2]
[398515714,1765774247144,-154.02508,0.00016986,2]
[398515715,1765774247153,-154.02508,0.00016986,2]
[398515716,1765774247161,-154.02508,0.00016986,2]
[398515717,1765774247170,-154.02508,0.00016986,2]
[398515718,1765774247179,-154.02508,0.00016986,2]
[398515719,1765774247189,-154.02508,0.00016986,2]
[398515720,1765774247623,-154.02508,0.00016986,2]
[398515721,1765774247633,-151.0,0.00016986,2]
[398515722,1765774247641,-159.76827,0.00016986,2]
[398515723,1765774247651,-151.0,0.00016986,2]
[398515724,1765774247660,-155.279333,0.00016986,2]
[398515725,1765774247669,-151.0,0.00016986,2]
[398515726,1765774247678,-151.0,0.00016986,2]
[398515727,1765774247688,-151.0,0.00016986,2]
[398515728,1765774247698,-157.950349,0.00016986,2]
[398515729,1765774247707,-151.0,0.00016986,2]
[398515730,1765774247717,-203.807123,0.00016986,2]
[398515731,1765774247726,-203.807123,0.00016986,2]
[398515732,1765774247736,-203.807123,0.00016986,2]
[398515733,1765774247745,-203.807123,0.00016986,2]
[398515734,1765774247754,-203.807123,0.00016986,2]
[398515735,1765774247764,-203.807123,0.00016986,2]
[398515736,1765774247773,-203.807123,0.00016986,2]
[398515737,1765774247782,-203.807123,0.00016986,2]
[398515738,1765774247792,-203.807123,0.00016986,2]
[398515739,1765774247801,-203.807123,0.00016986,2]
[398515740,1765774247810,-203.807123,0.00016986,2]
[398515741,1765774247819,-203.807123,0.00016986,2]
[398515742,1765774247828,-203.807123,0.00016986,2]
[398515743,1765774247837,-203.807123,0.00016986,2]
[398515744,1765774247846,-203.807123,0.00016986,2]
[398515745,1765774247855,-203.807123,0.00016986,2]
[398515746,1765774247864,-203.807123,0.00016986,2]
[398515747,1765774247872,-203.807123,0.00016986,2]
[398515748,1765774247881,-203.807123,0.00016986,2]
[398515749,1765774247890,-203.807114,0.00016986,2]
[398515750,1765774247899,-151.0,0.00016986,2]
[398515751,1765774247908,-151.0,0.00016986,2]
[398515752,1765774247916,-151.0,0.00016986,2]
[398515753,1765774247925,-151.0,0.00016986,2]
[398515754,1765774247934,-151.0,0.00016986,2]
[398515755,1765774247943,-151.0,0.00016986,2]
[398515756,1765774247951,-157.224399,0.00016986,2]
[398515757,1765774247960,-151.0,0.00016986,2]
[398515758,1765774247969,-151.0,0.00016986,2]
[398515759,1765774247978,-151.0,0.00016986,2]
[398515760,1765774247987,-151.0,0.00016986,2]
[398515761,1765774247995,-151.0,0.00016986,2]
[398515762,1765774248004,-151.0,0.00016986,2]
[398515763,1765774248013,-230.64018831,0.00016986,2]
[398515764,1765774248021,-151.0,0.00016986,2]
[398515765,1765774248030,-151.0,0.00016986,2]
[398515766,1765774248039,-151.0,0.00016986,2]
[398515767,1765774248048,-151.0,0.00016986,2]
[398515768,1765774248057,-151.0,0.00016986,2]
[398515769,1765774248066,-265.347186,0.00016986,2]
[398515770,1765774248075,-158.823395,0.00016986,2]
[398515771,1765774248084,-151.0,0.00016986,2]
[398515772,1765774248093,-151.0,0.00016986,2]
[398515773,1765774248102,-151.0,0.00016986,2]
[398515774,1765774248111,-151.0,0.00016986,2]
[398515775,1765774248120,-151.0,0.00016986,2]
[398515776,1765774248129,-300.484747,0.00016986,2]
[398515777,1765774248139,-393.893474,0.00016986,2]
[398515778,1765774248148,-393.893474,0.00016986,2]
[398515779,1765774248157,-393.893474,0.00016986,2]
[398515780,1765774248166,-393.893474,0.00016986,2]
[398515781,1765774248175,-393.893474,0.00016986,2]
[398515782,1765774248185,-393.893474,0.00016986,2]
[398515783,1765774248194,-393.893474,0.00016986,2]
[398515784,1765774248205,-393.893474,0.00016986,2]
[398515785,1765774248214,-393.893474,0.00016986,2]
[398515786,1765774248224,-393.893474,0.00016986,2]
[398515787,1765774248233,-393.893474,0.00016986,2]
[398515788,1765774248243,-393.893474,0.00016986,2]
[398515789,1765774248253,-393.893474,0.00016986,2]
[398515790,1765774248261,-393.893474,0.00016986,2]
[398515791,1765774248271,-393.893474,0.00016986,2]
[398515792,1765774248281,-393.893474,0.00016986,2]
[398515793,1765774248291,-393.893474,0.00016986,2]
[398515794,1765774248300,-393.893474,0.00016986,2]
[398515795,1765774248310,-393.893474,0.00016986,2]
[398515796,1765774248319,-393.893471,0.00016986,2]
[398515797,1765774248327,-151.0,0.00016986,2]
[398515798,1765774248337,-230.466505,0.00016986,2]
[398515799,1765774248346,-151.0,0.00016986,2]
[398515800,1765774248355,-230.466505,0.00016986,2]
[398515801,1765774248365,-230.466505,0.00016986,2]
[398515802,1765774248374,-151.0,0.00016986,2]
[398515803,1765774248383,-230.466505,0.00016986,2]
[398515804,1765774248392,-151.0,0.00016986,2]
[398515805,1765774248401,-230.466505,0.00016986,2]
[398515806,1765774248410,-230.466505,0.00016986,2]
[398515807,1765774248420,-151.0,0.00016986,2]
[398515808,1765774248431,-151.0,0.00016986,2]
[398515809,1765774248440,-230.466505,0.00016986,2]
[398515810,1765774248450,-151.0,0.00016986,2]
[398515811,1765774248460,-151.0,0.00016986,2]
[398515812,1765774248469,-230.466505,0.00016986,2]
[398515813,1765774248478,-151.0,0.00016986,2]
[398515814,1765774248487,-163.789862,0.00016986,2]
[398515815,1765774248499,-151.0,0.00016986,2]
[398515816,1765774248508,-230.466505,0.00016986,2]
[398515817,1765774248517,-151.0,0.00016986,2]
[398515818,1765774248527,-230.466505,0.00016986,2]
[398515819,1765774248538,-151.0,0.00016986,2]
[398515820,1765774248547,-151.0,0.00016986,2]
[398515821,1765774248556,-230.466505,0.00016986,2]
[398515822,1765774248567,-151.0,0.00016986,2]
[398515823,1765774248576,-230.466505,0.00016986,2]
[398515824,1765774248585,-151.0,0.00016986,2]
[398515825,1765774248595,-230.466505,0.00016986,2]
[398515826,1765774248604,-151.0,0.00016986,2]
[398515827,1765774248613,-230.466505,0.00016986,2]
[398515828,1765774248622,-151.0,0.00016986,2]
[398515829,1765774248631,-230.466505,0.00016986,2]
[398515830,1765774248640,-151.0,0.00016986,2]
[398515831,1765774248650,-230.466505,0.00016986,2]
[398515832,1765774248659,-151.0,0.00016986,2]
[398515833,1765774248668,-230.466505,0.00016986,2]
[398515834,1765774248677,-151.0,0.00016986,2]
[398515835,1765774248686,-230.466505,0.00016986,2]
[398515836,1765774248695,-151.0,0.00016986,2]
[398515837,1765774248704,-230.466505,0.00016986,2]
[398515838,1765774248712,-151.0,0.00016986,2]
[398515839,1765774248721,-230.466507,0.00016986,2]
[398515840,1765774248730,-151.0,0.00016986,2]
[398515841,1765774248740,-151.0,0.00016986,2]
[398515842,1765774248750,-212.179781,0.00016986,2]
[398515843,1765774248759,-909.009455,0.00016986,2]
[398515844,1765774248769,-909.009455,0.00016986,2]
[398515845,1765774248778,-909.009455,0.00016986,2]
[398515846,1765774248787,-909.009455,0.00016986,2]
[398515847,1765774248797,-909.009455,0.00016986,2]
[398515848,1765774248806,-909.009455,0.00016986,2]
[398515849,1765774248816,-909.009455,0.00016986,2]
[398515850,1765774248825,-254.81513,0.00016986,2]
[398515851,1765774248834,-254.81513,0.00016986,2]
[398515852,1765774248843,-254.81513,0.00016986,2]
[398515853,1765774248853,-254.81513,0.00016986,2]
[398515854,1765774248863,-254.81513,0.00016986,2]
[398515855,1765774248872,-254.81513,0.00016986,2]
[398515856,1765774248882,-254.81513,0.00016986,2]
[398515857,1765774248891,-254.81513,0.00016986,2]
[398515858,1765774248900,-254.81513,0.00016986,2]
[398515859,1765774248910,-254.81513,0.00016986,2]
[398515860,1765774248919,-254.81513,0.00016986,2]
[398515861,1765774248928,-254.81513,0.00016986,2]
[398515862,1765774248937,-254.81513,0.00016986,2]
[398515863,1765774248948,-254.81513,0.00016986,2]
[398515864,1765774248958,-254.81513,0.00016986,2]
[398515865,1765774248969,-254.81513,0.00016986,2]
[398515866,1765774248979,-254.81513,0.00016986,2]
[398515867,1765774248991,-254.81513,0.00016986,2]
[398515868,1765774249001,-254.81513,0.00016986,2]
[398515869,1765774249011,-254.815134,0.00016986,2]
[398515870,1765774249021,-909.009455,0.00016986,2]
[398515871,1765774249030,-909.009455,0.00016986,2]
[398515872,1765774249041,-909.009455,0.00016986,2]
[398515873,1765774249050,-909.009455,0.00016986,2]
[398515874,1765774249060,-909.009455,0.00016986,2]
[398515875,1765774249070,-909.009455,0.00016986,2]
[398515876,1765774249080,-909.009455,0.00016986,2]
[398515877,1765774249090,-909.009455,0.00016986,2]
[398515878,1765774249100,-909.009455,0.00016986,2]
[398515879,1765774249110,-909.009455,0.00016986,2]
[398515880,1765774249123,-909.009455,0.00016986,2]
[398515881,1765774249134,-909.009455,0.00016986,2]
[398515882,1765774249144,-909.009448,0.00016986,2]
[398515883,1765774249156,-151.0,0.00016986,2]
[398515884,1765774249166,-151.0,0.00016986,2]
[398515885,1765774249175,-151.0,0.00016986,2]
[398515886,1765774249184,-151.0,0.00016986,2]
[398515887,1765774249193,-151.0,0.00016986,2]
[398515888,1765774249203,-151.0,0.00016986,2]
[398515889,1765774249212,-151.0,0.00016986,2]
[398515890,1765774249221,-151.0,0.00016986,2]
[398515891,1765774249230,-151.0,0.00016986,2]
[398515892,1765774249239,-151.0,0.00016986,2]
[398515893,1765774249248,-151.0,0.00016986,2]
[398515894,1765774249258,-151.0,0.00016986,2]
[398515895,1765774249267,-151.0,0.00016986,2]
[398515896,1765774249276,-151.0,0.00016986,2]
[398515897,1765774249285,-151.0,0.00016986,2]
[398515898,1765774249294,-151.0,0.00016986,2]
[398515899,1765774249303,-151.0,0.00016986,2]
[398515900,1765774249313,-151.0,0.00016986,2]
[398515901,1765774249322,-152.467402,0.00016986,2]
[398515902,1765774249332,-151.0,0.00016986,2]
[398515903,1765774249341,-151.0,0.00016986,2]
[398515904,1765774249350,-151.0,0.00016986,2]
[398515905,1765774249359,-151.0,0.00016986,2]
[398515906,1765774249368,-151.0,0.00016986,2]
[398515907,1765774249377,-151.0,0.00016986,2]
[398515908,1765774249387,-151.0,0.00016986,2]
[398515909,1765774249396,-151.0,0.00016986,2]
[398515910,1765774249405,-151.0,0.00016986,2]
[398515911,1765774249414,-151.0,0.00016986,2]
[398515912,1765774249423,-151.0,0.00016986,2]
[398515913,1765774249433,-151.0,0.00016986,2]
[398515914,1765774249443,-151.0,0.00016986,2]
[398515915,1765774249453,-151.0,0.00016986,2]
[398515916,1765774249462,-151.0,0.00016986,2]
[398515917,1765774249472,-151.0,0.00016986,2]
[398515918,1765774249481,-185.713922,0.00016986,2]
[398515919,1765774249495,-151.0,0.00016986,2]
[398515920,1765774249505,-40.47949569,0.00016986,2]
[398515921,1765774249546,-110.52050431,0.00016986,2]
[398515922,1765774249555,-151.0,0.00016986,2]
[398515923,1765774249564,-104.10949579,0.00016986,2]
[398515924,1765774249578,-46.89050421,0.00016986,2]
[398515925,1765774249587,-151.0,0.00016986,2]
[398515926,1765774249596,-151.0,0.00016986,2]
[398515927,1765774249605,-151.0,0.00016986,2]
[398515928,1765774249614,-151.0,0.00016986,2]
[398515929,1765774249623,-151.0,0.00016986,2]
[398515930,1765774249632,-151.0,0.00016986,2]
[398515931,1765774249641,-151.0,0.00016986,2]
[398515932,1765774249650,-130.26938415,0.00016986,2]
[398515933,1765774249662,-20.73061585,0.00016986,2]
[398515934,1765774249671,-151.0,0.00016986,2]
[398515935,1765774249680,-132.48938415,0.00016986,2]
[398515942,1765774334943,166.66,0.00015235,2]
[398515943,1765774335139,166.66,0.00015556,2]
[398515978,1765774770114,8344.0,0.00015718,2]
[398516121,1765775070711,239.16934102,0.00015745,2]
[398516122,1765775073763,-195.0,0.00015745,2]
[398516125,1765775078804,-195.0,0.00015745,2]
[398516136,1765775131004,150.0,0.00015288,2]
[398516137,1765775131073,150.0,0.00015288,2]
[398516138,1765775131207,150.0,0.00015288,2]
[398516139,1765775138369,150.0,0.00015288,2]
[398516140,1765775138436,150.0,0.00015288,2]
[398516141,1765775138478,150.0,0.00015288,2]
[398516142,1765775150888,150.0,0.00015288,2]
[398516186,1765775247968,1600.0,0.00015581,2]
[398516195,1765775347372,1000.0,0.00013699,2]
[398516207,1765775432227,-281.0,0.00015745,2]
[398516208,1765775432236,-103.78397968,0.00015745,2]
[398516209,1765775432248,-776.2166793,0.00015745,2]
[398516210,1765775432258,-166.66,0.00015877,2]
[398516211,1765775432267,-806.21159943,0.0001588,2]
[398516212,1765775432278,-1815.05849312,0.0001588,2]
[398516213,1765775432289,-815.82400348,0.0001588,2]
[398516214,1765775432304,-134.84590397,0.0001588,2]
[398516215,1765775432314,-250.0,0.00015928,2]
[398516216,1765775432324,-208.06079385,0.00015962,2]
[398516217,1765775432335,-271.414428,0.00015962,2]
[398516218,1765775432386,-1372.94477815,0.00015962,2]
[398516219,1765775432396,-1200.0,0.00016015,2]
[398516220,1765775432405,-300.0,0.00016016,2]
[398516221,1765775432414,-500.0,0.00016017,2]
[398516222,1765775432423,-500.0,0.00016017,2]
[398516223,1765775432432,-300.0,0.00016068,2]
[398516224,1765775432441,-1502.0,0.00016068,2]
[398516225,1765775432450,-500.0,0.00016137,2]
[398516226,1765775432459,-150.0,0.00016137,2]
[398516227,1765775432469,-166.66,0.00016198,2]
[398516228,1765775432478,-250.0,0.00016318,2]
[398516229,1765775432488,-376.0,0.00016402,2]
[398516230,1765775432497,-325.45,0.00016408,2]
[398516231,1765775432506,-376.0,0.0001645,2]
[398516233,1765775432516,-553.22,0.000165,2]
[398516235,1765775432525,-166.66,0.00016518,2]
[398516236,1765775432534,-300.43,0.000166,2]
[398516237,1765775432548,-1502.0,0.00016616,2]
[398516238,1765775432557,-151.0,0.00016617,2]
[398516240,1765775432567,-356.1896212,0.00016619,2]
[398516242,1765775432576,-606.37716057,0.0001662,2]
[398516244,1765775432585,-44054.85733574,0.0001662,2]
[398516269,1765775434900,-462.1300956,0.0001662,2]
[398516270,1765775434911,-1075.43,0.0001662,2]
[398516271,1765775434926,-999.0,0.0001662,2]
[398516276,1765775438349,-500.0,0.00016619,2]
[398516277,1765775438359,-500.0,0.00016619,2]
[398516278,1765775438369,-500.0,0.00016619,2]
[398516279,1765775438378,-200.0,0.00016619,2]
[398516280,1765775438388,-500.0,0.00016619,2]
[398516281,1765775438397,-500.0,0.00016619,2]
[398516282,1765775438407,-500.0,0.00016619,2]
[398516283,1765775438416,-390.52364201,0.00016619,2]
[398516284,1765775438426,-2402.20071224,0.0001662,2]
[398516285,1765775438437,-435.68171857,0.0001662,2]
[398516286,1765775438448,-40260.57011841,0.0001662,2]
[398516287,1765775438459,-11195.78426194,0.0001662,2]
[398516288,1765775438726,-13332.15118258,0.0001662,2]
[398516289,1765775438783,-660.02060821,0.0001662,2]
[398516290,1765775438795,-17534.53256987,0.0001662,2]
[398516342,1765775440364,-8555.48168068,0.0001662,2]
[398516343,1765775440416,-410.52,0.0001662,2]
[398516344,1765775440473,-174311.90471616,0.0001662,2]
[398516345,1765775440482,-550.0,0.00016651,2]
[398516346,1765775440492,-606.37716056,0.00016651,2]
[398516347,1765775440501,-850.77826115,0.0001666,2]
[398516348,1765775440510,-376.0,0.00016663,2]
[398516349,1765775440519,-606.37716056,0.00016682,2]
[398516350,1765775440528,-200.0,0.0001671,2]
[398516351,1765775440536,-197.76511705,0.0001671,2]
[398516352,1765775440545,-574.12855637,0.0001671,2]
[398516353,1765775440554,-606.37716056,0.00016713,2]
[398516354,1765775440563,-158.212779,0.00016715,2]
[398516355,1765775440572,-500.0,0.00016719,2]
[398516356,1765775440582,-305.17878308,0.00016719,2]
[398516357,1765775440591,-238.26159997,0.00016719,2]
[398516358,1765775440600,-500.0,0.00016719,2]
[398516359,1765775440609,-2862.88,0.0001672,2]
[398516360,1765775440618,-376.0,0.00016725,2]
[398516361,1765775440627,-500.0,0.00016726,2]
[398516362,1765775440636,-150.0,0.00016726,2]
[398516363,1765775440645,-150.0,0.00016726,2]
[398516364,1765775440655,-500.0,0.00016726,2]
[398516365,1765775440674,-500.0,0.00016726,2]
[398516366,1765775440693,-1132.0,0.00016726,2]
[398516367,1765775440712,-200.0,0.00016726,2]
[398516368,1765775440731,-150.0,0.00016726,2]
[398516369,1765775440750,-500.0,0.00016726,2]
[398516370,1765775440767,-257.15734767,0.00016726,2]
[398516371,1765775440777,-150.0,0.00016726,2]
[398516372,1765775440787,-500.0,0.00016726,2]
[398516373,1765775440796,-500.0,0.00016726,2]
[398516374,1765775440805,-671.0,0.00016726,2]
[398516375,1765775440814,-153.30440339,0.00016726,2]
[398516376,1765775440823,-500.0,0.00016726,2]
[398516377,1765775440833,-500.0,0.00016726,2]
[398516378,1765775440842,-295.32469408,0.00016726,2]
[398516379,1765775440851,-150.0,0.00016726,2]
[398516380,1765775440860,-606.37716056,0.00016744,2]
[398516381,1765775440869,-606.37716056,0.00016776,2]
[398516382,1765775440878,-1525.29469208,0.00016797,2]
[398516383,1765775440888,-151.0,0.000168,2]
[398516384,1765775440897,-606.37716056,0.00016807,2]
[398516385,1765775440907,-1525.29469199,0.00016808,2]
[398516386,1765775440916,-1525.29469199,0.0001682,2]
[398516387,1765775440925,-12215.16279067,0.0001682,2]
[398516388,1765775440934,-2009.13396,0.0001683,2]
[398516389,1765775440944,-1525.29469199,0.00016831,2]
[398516390,1765775440953,-606.37716056,0.00016838,2]
[398516391,1765775440962,-166.66,0.00016839,2]
[398516392,1765775440971,-1525.29469199,0.00016843,2]
[398516393,1765775440980,-500.0,0.00016849,2]
[398516394,1765775440990,-151.0,0.00016851,2]
[398516395,1765775440999,-1525.29469199,0.00016854,2]
[398516396,1765775441008,-696.649,0.00016862,2]
[398516397,1765775441017,-500.0,0.00016863,2]
[398516398,1765775441026,-250.0,0.00016863,2]
[398516400,1765775441036,-150.0,0.00016863,2]
[398516401,1765775441045,-500.0,0.00016863,2]
[398516402,1765775441054,-500.0,0.00016863,2]
[398516403,1765775441063,-1132.0,0.00016863,2]
[398516404,1765775441071,-565.45063143,0.00016863,2]
[398516405,1765775441080,-500.0,0.00016863,2]
[398516406,1765775441089,-500.0,0.00016863,2]
[398516407,1765775441098,-671.0,0.00016863,2]
[398516408,1765775441107,-626.53505463,0.00016863,2]
[398516409,1765775441116,-500.0,0.00016863,2]
[398516410,1765775441125,-200.0,0.00016864,2]
[398516411,1765775441134,-1525.29469199,0.00016866,2]
[398516412,1765775441144,-606.37716056,0.00016869,2]
[398516413,1765775441153,-911.0,0.00016873,2]
[398516414,1765775441162,-1196.0,0.00016873,2]
[398516415,1765775441171,-563.0,0.00016873,2]
[398516416,1765775441182,-2426.0,0.00016873,2]
[398516417,1765775441193,-4798.0,0.00016873,2]
[398516418,1765775441202,-1525.29469199,0.00016877,2]
[398516419,1765775441211,-1572.9485674,0.00016886,2]
[398516420,1765775441221,-6766.0798,0.00016886,2]
[398516421,1765775441231,-1525.29469199,0.00016889,2]
[398516422,1765775441240,-1572.94856737,0.00016889,2]
[398516423,1765775441249,-376.0,0.0001689,2]
[398516424,1765775441267,-1572.94856737,0.00016892,2]
[398516425,1765775441277,-1572.94856737,0.00016894,2]
[398516426,1765775441286,-4806.0,0.00016895,2]
[398516427,1765775441295,-1572.94856737,0.00016897,2]
[398516428,1765775441304,-150.0,0.000169,2]
[398516429,1765775441314,-464.12,0.000169,2]
[398516430,1765775441323,-606.37716056,0.000169,2]
[398516431,1765775441332,-1236.89312992,0.000169,2]
[398516432,1765775441341,-1525.29469199,0.000169,2]